bitfinex/quotes_SOLUSD_20250718
["timestamp","ask_amount","ask_price","bid_price","bid_amount"]
[1752866336514,7.16845543,177.89,177.84,7.16845543]
[1752866336714,7.87845543,177.88,177.85,30.6]
[1752866336925,7.16845543,177.86,177.85,30.6]
[1752866337314,7.87845543,177.86,177.85,30.6]
[1752866337514,13.50085507,177.86,177.85,30.6]
[1752866337921,0.71,177.86,177.85,30.6]
[1752866338116,6.2742,177.89,177.85,37.76845543]
[1752866338315,89.91,177.9,177.86,7.16845543]
[1752866338538,5.62145819,177.89,177.87,30.58]
[1752866339112,0.71,177.88,177.87,30.58]
[1752866339525,6.33176748,177.88,177.87,30.58]
[1752866340120,13.50022291,177.88,177.87,30.58]
[1752866340319,16.78468397,177.85,177.74,0.71]
[1752866340630,7.16845543,177.82,177.79,30.58]
[1752866340808,0.71,177.81,177.79,30.58]
[1752866341825,5.62429696,177.8,177.79,30.58]
[1752866342128,6.33429696,177.8,177.79,30.58]
[1752866342546,13.50275239,177.8,177.75,7.16845543]
[1752866342723,7.16845543,177.79,177.77,30.58]
[1752866342922,7.87845543,177.79,177.77,30.58]
[1752866343230,24.6631394,177.79,177.77,30.58]
[1752866343407,30.7968394,177.79,177.75,30.58]
[1752866344013,36.4214527,177.79,177.75,30.58]
[1752866344212,29.25299727,177.79,177.75,30.58]
[1752866344425,0.71,177.82,177.78,7.19845543]
[1752866344630,6.33305621,177.84,177.81,7.16845543]
[1752866344847,16.78468397,177.83,177.78,0.03]
[1752866345140,7.16845543,177.81,177.79,0.03]
[1752866345440,7.16845543,177.8,177.79,0.03]
[1752866345637,7.87845543,177.8,177.79,0.03]
[1752866346029,13.50275239,177.8,177.79,0.03]
[1752866346545,6.33429696,177.8,177.79,0.03]
[1752866347616,13.50275239,177.8,177.79,0.03]
[1752866348649,12.79269424,177.81,177.79,0.03]
[1752866349241,5.62423881,177.81,177.79,0.03]
[1752866349413,89.2,177.8,177.79,0.03]
[1752866349616,89.2,177.8,177.79,7.87845543]
[1752866350314,5.62308936,177.84,177.79,7.87845543]
[1752866350531,5.62308936,177.84,177.81,7.16845543]
[1752866350714,5.62308936,177.84,177.81,37.74845543]
[1752866351114,6.33308936,177.84,177.81,37.74845543]
[1752866351315,5.62308936,177.84,177.81,30.58]
[1752866351552,5.62308936,177.84,177.8,30.58]
[1752866351553,0.71,177.83,177.8,30.58]
[1752866351714,0.71,177.82,177.8,30.58]
[1752866352338,5.62398065,177.81,177.8,30.58]
[1752866352743,5.62372427,177.82,177.8,37.74845543]
[1752866353046,6.33312313,177.84,177.8,37.74845543]
[1752866353541,5.62312313,177.84,177.8,38.42845543]
[1752866353843,5.62312313,177.84,177.81,7.16845543]
[1752866354540,5.62312313,177.84,177.82,7.16845543]
[1752866355242,94.82312313,177.84,177.81,0.68]
[1752866355432,94.82312313,177.84,177.82,7.16845543]
[1752866357344,16.78468397,177.82,177.79,0.03]
[1752866357641,23.9531394,177.8,177.79,0.03]
[1752866358028,0.66,177.8,177.79,0.03]
[1752866358230,13.21945543,177.82,177.79,0.03]
[1752866358639,6.051,177.82,177.79,0.03]
[1752866358832,6.711,177.82,177.79,0.03]
[1752866359022,5.62366437,177.82,177.79,7.19845543]
[1752866359534,5.62366437,177.82,177.79,7.86845543]
[1752866360451,6.28366437,177.82,177.79,0.03]
[1752866360655,5.62366437,177.82,177.79,0.03]
[1752866360839,0.66,177.81,177.79,0.03]
[1752866361542,5.62391562,177.82,177.79,7.19845543]
[1752866362155,6.28391562,177.82,177.79,7.19845543]
[1752866362354,89.2,177.83,177.79,7.19845543]
[1752866362531,94.82339855,177.83,177.8,7.16845543]
[1752866363029,0.66,177.82,177.79,7.19845543]
[1752866363453,5.62398065,177.81,177.79,7.19845543]
[1752866363649,6.28398065,177.81,177.79,7.19845543]
[1752866363825,6.28398065,177.81,177.79,0.03]
[1752866364226,5.62398065,177.81,177.79,0.03]
[1752866364745,5.62398065,177.81,177.79,7.19845543]
[1752866364938,6.28398065,177.81,177.79,0.03]
[1752866365267,0.66,177.8,177.79,0.03]
[1752866365427,6.28429696,177.8,177.79,0.03]
[1752866365627,5.62429696,177.8,177.79,0.03]
[1752866366268,94.82344723,177.83,177.79,7.19845543]
[1752866366430,95.9834,177.86,177.82,7.16845543]
[1752866366633,89.2,177.85,177.83,7.16845543]
[1752866367056,89.2,177.87,177.84,7.16845543]
[1752866367237,89.2,177.87,177.85,7.16845543]
[1752866367439,89.2,177.89,177.86,7.16845543]
[1752866367661,89.2,177.89,177.88,7.16845543]
[1752866367831,150.0655,177.92,177.88,7.16845543]
[1752866367832,0.66,177.92,177.88,7.16845543]
[1752866368033,0.66,177.92,177.9,7.16845543]
[1752866368240,94.88021788,177.93,177.9,7.16845543]
[1752866368442,95.54021788,177.93,177.9,7.16845543]
[1752866368656,95.54021788,177.93,177.88,30.54]
[1752866368657,89.26,177.93,177.91,7.16845543]
[1752866368851,94.88024136,177.93,177.91,7.16845543]
[1752866369179,0.66,177.92,177.9,7.16845543]
[1752866369345,95.54024136,177.93,177.9,7.16845543]
[1752866369747,95.54024136,177.93,177.88,30.54]
[1752866369970,94.88024136,177.93,177.88,30.54]
[1752866370271,0.66,177.92,177.88,30.54]
[1752866370474,0.66,177.91,177.88,37.70845543]
[1752866370642,0.66,177.9,177.87,37.70845543]
[1752866370975,0.66,177.89,177.86,37.70845543]
[1752866371144,7.16845543,177.91,177.86,37.70845543]
[1752866371471,0.66,177.91,177.87,7.16845543]
[1752866371778,5.62113546,177.9,177.87,7.16845543]
[1752866372270,0.66,177.89,177.87,7.16845543]
[1752866372643,5.62113546,177.9,177.87,7.16845543]
[1752866373449,6.28113546,177.9,177.87,7.16845543]
[1752866373970,0.66,177.89,177.86,30.54]
[1752866374178,5.62113546,177.9,177.86,37.70845543]
[1752866374555,6.28113546,177.9,177.87,7.16845543]
[1752866374771,5.62113546,177.9,177.87,7.16845543]
[1752866375273,6.28113546,177.9,177.87,7.16845543]
[1752866375579,5.62091406,177.91,177.88,7.16845543]
[1752866375739,6.28091406,177.91,177.88,7.16845543]
[1752866376604,5.62091406,177.91,177.86,30.54]
[1752866376772,89.2,177.92,177.9,7.16845543]
[1752866376986,89.2,177.92,177.89,7.83845543]
[1752866377568,89.2,177.92,177.9,30.52]
[1752866378373,89.2,177.92,177.91,7.16845543]
[1752866378574,89.2,177.92,177.91,7.83845543]
[1752866379874,89.2,177.92,177.91,7.16845543]
[1752866380752,89.2,177.92,177.9,30.52]
[1752866380960,89.2,177.92,177.9,37.68845543]
[1752866381260,94.8205062,177.92,177.9,37.68845543]
[1752866381568,95.4805062,177.92,177.9,30.52]
[1752866382060,5.62113546,177.9,177.82,0.67]
[1752866382268,89.86,177.89,177.85,7.16845543]
[1752866382441,89.86,177.89,177.86,30.5]
[1752866383194,89.86,177.89,177.86,37.66845543]
[1752866383403,89.2,177.89,177.87,7.16845543]
[1752866383580,89.2,177.89,177.88,7.16845543]
[1752866383755,89.2,177.89,177.86,30.5]
[1752866383960,94.8215229,177.89,177.86,30.5]
[1752866384162,89.2,177.89,177.86,30.5]
[1752866384481,89.2,177.89,177.88,7.16845543]
[1752866384662,0.06,177.93,177.88,7.83845543]
[1752866384991,0.06,177.93,177.92,7.16845543]
[1752866385166,0.06,177.93,177.92,37.64845543]
[1752866386981,0.06,177.93,177.92,30.48]
[1752866387157,0.06,177.93,177.92,37.64845543]
[1752866389168,0.06,177.93,177.92,38.32845543]
[1752866389390,0.06,177.93,177.92,37.64845543]
[1752866391969,0.06,177.93,177.92,38.32845543]
[1752866393088,0.06,177.93,177.92,37.64845543]
[1752866394306,0.06,177.93,177.92,38.32845543]
[1752866395390,0.06,177.93,177.92,37.64845543]
[1752866395972,0.06,177.93,177.92,43.94895902]
[1752866396894,0.06,177.93,177.92,38.32845543]
[1752866398795,0.06,177.93,177.92,51.11741445]
[1752866398982,0.06,177.93,177.92,43.94895902]
[1752866400076,0.06,177.93,177.92,51.11741445]
[1752866400284,0.06,177.93,177.92,43.94895902]
[1752866402080,0.06,177.93,177.92,51.11741445]
[1752866402595,0.06,177.96,177.95,26.0]
[1752866402805,0.06,177.96,177.95,63.60845543]
[1752866402977,0.06,177.96,177.95,64.28845543]
[1752866403375,0.06,178.01,177.95,64.28845543]
[1752866403376,0.06,178.01,177.96,1.6175]
[1752866403576,0.06,178.01,177.97,30.42]
[1752866403870,0.06,178.01,178.0,7.16845543]
[1752866404091,0.06,178.01,178.0,37.58845543]
[1752866404285,0.06,178.01,178.0,38.26845543]
[1752866404486,0.06,178.01,178.0,43.88643295]
[1752866404679,0.06,178.01,178.0,45.43691086]
[1752866404893,0.06,178.01,178.0,38.26845543]
[1752866405272,0.06,178.01,178.0,37.58845543]
[1752866405900,0.06,178.01,178.0,7.16845543]
[1752866406200,0.73,178.01,178.0,30.42]
[1752866406582,6.34766192,178.01,178.0,30.42]
[1752866407294,6.34766192,178.01,177.99,7.16845543]
[1752866407491,6.34766192,178.01,178.0,30.42]
[1752866407701,6.34766192,178.01,177.97,7.16845543]
[1752866407896,7.83845543,178.0,177.98,30.4]
[1752866408095,5.67766192,178.01,177.98,30.4]
[1752866408096,0.67,177.99,177.98,30.4]
[1752866408902,5.61808113,178.0,177.98,38.24845543]
[1752866409121,5.61808113,178.0,177.99,7.16845543]
[1752866409707,5.61808113,178.0,177.98,30.4]
[1752866409880,5.61808113,178.0,177.99,30.4]
[1752866410185,26.83148038,178.0,177.95,7.16845543]
[1752866410386,0.67,177.99,177.96,30.4]
[1752866410689,7.83845543,177.99,177.97,30.4]
[1752866410894,5.61860883,177.98,177.94,7.16845543]
[1752866411081,6.28860883,177.98,177.94,7.16845543]
[1752866411406,7.16845543,177.95,177.92,0.03]
[1752866411703,6.6146,177.95,177.92,0.03]
[1752866411878,7.16845543,177.94,177.92,0.03]
[1752866412082,7.83845543,177.94,177.92,0.03]
[1752866412289,0.67,177.93,177.92,0.03]
[1752866412795,6.29018771,177.93,177.92,0.03]
[1752866414681,13.45864314,177.93,177.92,0.03]
[1752866415082,17.96994286,177.93,177.92,0.03]
[1752866415885,11.67975515,177.92,177.88,30.41]
[1752866416194,0.7,177.91,177.88,30.41]
[1752866416592,19.67065699,177.93,177.89,11.67975515]
[1752866416786,20.37065699,177.93,177.89,11.67975515]
[1752866416982,19.67065699,177.93,177.89,11.67975515]
[1752866417310,0.7,177.92,177.89,11.67975515]
[1752866417613,5.62018771,177.93,177.89,11.67975515]
[1752866417783,5.62018771,177.93,177.9,11.67975515]
[1752866418106,6.32018771,177.93,177.89,11.67975515]
[1752866418418,5.62018771,177.93,177.9,12.36975515]
[1752866418603,5.62018771,177.93,177.92,11.67975515]
[1752866418799,5.61987186,177.94,177.92,11.67975515]
[1752866419115,30.38,177.99,177.88,30.41]
[1752866419116,89.2,177.98,177.93,12.36975515]
[1752866419319,89.2,177.98,177.97,11.67975515]
[1752866419503,5.61829316,177.99,177.97,11.67975515]
[1752866419690,5.67806874,178.0,177.98,11.67975515]
[1752866420194,6.37806874,178.0,177.98,11.67975515]
[1752866420405,0.7,177.99,177.94,30.38]
[1752866420605,0.7,177.99,177.96,11.67975515]
[1752866420832,0.06,178.0,177.98,11.67975515]
[1752866421037,0.06,178.0,177.99,11.67975515]
[1752866421321,0.06,178.0,177.99,12.36975515]
[1752866423206,0.06,178.0,177.98,30.38]
[1752866423517,0.06,178.0,177.99,11.67975515]
[1752866424307,0.06,178.0,177.99,12.36975515]
[1752866426407,0.06,178.0,177.99,17.98804831]
[1752866426607,0.06,178.0,177.99,12.36975515]
[1752866426908,0.06,178.0,177.99,17.98804831]
[1752866428520,0.06,178.0,177.99,34.77273228]
[1752866428717,0.06,178.0,177.99,36.36173228]
[1752866429928,0.06,178.0,177.99,39.95875515]
[1752866430442,0.06,178.0,177.96,16.78468397]
[1752866430443,0.06,178.0,177.96,0.69]
[1752866430645,0.06,178.0,177.99,11.67975515]
[1752866430805,0.06,178.0,177.99,30.34]
[1752866431005,0.06,178.0,177.99,42.01975515]
[1752866432631,0.06,178.0,177.99,30.34]
[1752866432834,0.06,178.0,177.99,42.01975515]
[1752866433131,12.43975515,178.0,177.95,11.67975515]
[1752866433323,0.06,178.0,177.97,30.34]
[1752866433507,0.06,178.0,177.97,42.01975515]
[1752866434132,0.76,178.0,177.97,42.01975515]
[1752866434510,0.7,177.99,177.97,30.34]
[1752866434710,11.73975515,178.0,177.97,30.34]
[1752866434913,0.76,178.0,177.97,30.34]
[1752866435312,0.76,178.0,177.97,42.01975515]
[1752866435631,5.61829316,177.99,177.97,30.34]
[1752866436040,6.37805572,178.0,177.97,30.32]
[1752866437427,6.37805572,178.0,177.97,41.99975515]
[1752866437626,12.37975515,177.99,177.89,0.03]
[1752866437814,11.67975515,177.98,177.93,11.67975515]
[1752866438012,0.7,177.97,177.94,30.32]
[1752866438535,0.7,177.96,177.94,30.32]
[1752866438829,0.7,177.95,177.91,30.32]
[1752866439164,89.2,177.96,177.93,11.67975515]
[1752866439334,89.2,177.96,177.93,30.32]
[1752866439530,89.9,177.96,177.93,30.32]
[1752866439724,94.81929632,177.96,177.93,30.32]
[1752866439909,5.61929632,177.96,177.93,41.99975515]
[1752866440104,5.61901512,177.97,177.94,11.67975515]
[1752866440310,5.61901512,177.97,177.95,41.99975515]
[1752866440525,5.61901512,177.97,177.95,42.68975515]
[1752866440718,5.61901512,177.97,177.95,41.99975515]
[1752866440920,5.61829316,177.99,177.96,11.67975515]
[1752866441229,5.61829316,177.99,177.97,41.99975515]
[1752866441920,0.7,177.98,177.97,30.32]
[1752866442238,5.67797752,178.0,177.97,30.32]
[1752866442436,0.7,177.99,177.97,30.32]
[1752866442637,0.7,177.98,177.97,30.32]
[1752866443339,0.7,177.98,177.96,30.32]
[1752866443541,18.05773267,178.0,177.96,41.99975515]
[1752866443742,5.67797752,178.0,177.96,41.99975515]
[1752866444049,0.7,177.99,177.96,41.99975515]
[1752866444221,0.7,177.99,177.96,30.32]
[1752866444422,5.67797752,178.0,177.97,11.67975515]
[1752866444728,0.7,177.99,177.96,41.99975515]
[1752866446016,0.67,177.99,177.96,41.99975515]
[1752866446929,5.61860883,177.98,177.96,41.99975515]
[1752866448745,5.61860883,177.98,177.96,30.32]
[1752866448938,5.61860883,177.98,177.96,41.99975515]
[1752866449244,5.61860883,177.98,177.97,11.67975515]
[1752866449651,5.61832628,177.99,177.97,11.67975515]
[1752866450139,0.06,178.0,177.98,41.97975515]
[1752866450512,0.06,178.0,177.99,11.67975515]
[1752866450926,0.06,178.0,177.99,12.37975515]
[1752866452218,0.06,178.0,177.99,17.99804831]
[1752866453146,0.06,178.0,177.99,6.31829316]
[1752866453337,0.06,178.0,177.99,17.99804831]
[1752866455040,0.06,178.0,177.97,0.56189245]
[1752866455041,0.06,178.0,177.96,0.7]
[1752866455218,0.06,178.0,177.99,11.67975515]
[1752866455419,0.06,178.0,177.99,41.95975515]
[1752866455618,0.06,178.0,177.99,11.67975515]
[1752866455819,0.73,178.0,177.99,30.28]
[1752866456545,0.73,178.0,177.97,11.67975515]
[1752866456546,18.02773267,178.0,177.97,30.28]
[1752866456726,12.34975515,177.99,177.97,30.28]
[1752866456929,5.67797752,178.0,177.97,30.28]
[1752866457234,0.67,177.99,177.97,30.28]
[1752866457432,0.67,177.98,177.97,30.28]
[1752866458320,17.35773267,178.0,177.97,30.28]
[1752866458522,0.67,177.99,177.97,30.28]
[1752866459142,5.61860883,177.98,177.97,30.28]
[1752866459559,6.28860883,177.98,177.92,0.03]
[1752866459852,12.34975515,177.97,177.93,30.28]
[1752866460149,12.34975515,177.96,177.93,30.28]
[1752866460366,0.67,177.95,177.93,30.28]
[1752866460521,5.61860883,177.98,177.93,41.95975515]
[1752866460850,5.61860883,177.98,177.94,12.37975515]
[1752866461053,5.61860883,177.98,177.95,41.95975515]
[1752866461054,0.67,177.98,177.95,41.95975515]
[1752866461359,26.06,178.0,177.97,11.67975515]
[1752866461360,0.06,178.0,177.97,11.67975515]
[1752866461560,0.06,178.0,177.99,11.67975515]
[1752866461919,0.06,178.0,177.99,12.37975515]
[1752866463765,0.06,178.0,177.99,11.67975515]
[1752866465625,0.06,178.0,177.99,17.99804831]
[1752866465825,0.06,178.0,177.99,12.37975515]
[1752866466053,0.06,178.0,177.99,17.99804831]
[1752866466439,0.06,178.01,177.99,60.78273228]
[1752866466625,0.06,178.01,178.0,42.63975515]
[1752866467036,0.06,178.01,178.0,48.25773267]
[1752866467857,0.06,178.01,178.0,42.63975515]
[1752866468546,0.06,178.01,177.97,0.7]
[1752866468733,0.06,178.01,178.0,11.67975515]
[1752866468928,0.06,178.01,178.0,41.93975515]
[1752866469127,0.73,178.01,178.0,41.93975515]
[1752866469358,0.06,178.01,178.0,41.93975515]
[1752866469568,0.06,178.01,178.0,30.26]
[1752866469731,0.06,178.01,178.0,41.93975515]
[1752866471043,6.34766192,178.01,177.99,11.67975515]
[1752866471348,6.34766192,178.01,177.92,16.81468397]
[1752866471349,12.34975515,178.0,177.92,0.73]
[1752866471555,0.67,177.99,177.95,11.67975515]
[1752866471759,0.67,177.99,177.96,41.91975515]
[1752866472061,0.67,177.99,177.97,11.67975515]
[1752866472262,12.43746192,178.01,177.98,11.67975515]
[1752866472456,0.67,178.0,177.97,11.67975515]
[1752866472637,0.67,177.99,177.97,11.67975515]
[1752866473164,12.43746192,178.01,177.98,41.91975515]
[1752866473334,11.76746192,178.01,177.99,11.67975515]
[1752866473536,6.1498,178.01,178.0,11.67975515]
[1752866473733,6.1498,178.01,178.0,41.91975515]
[1752866473932,121.1038,178.08,178.0,41.91975515]
[1752866473933,0.06,178.08,178.04,16.78468397]
[1752866474263,7.89612516,178.15,178.04,16.78468397]
[1752866474264,7.2339,178.18,178.11,26.0]
[1752866474476,89.2,178.22,178.17,11.67975515]
[1752866474630,6.5639,178.25,178.18,30.24]
[1752866474631,7.2339,178.25,178.18,30.24]
[1752866474835,0.67,178.24,178.16,26.0]
[1752866475135,0.67,178.24,178.23,11.67975515]
[1752866475353,0.67,178.24,178.21,30.24]
[1752866475552,0.67,178.23,178.21,41.91975515]
[1752866476166,6.5639,178.25,178.22,11.67975515]
[1752866476349,0.67,178.28,178.23,30.22]
[1752866476704,0.67,178.27,178.26,11.67975515]
[1752866476847,0.67,178.27,178.26,41.89975515]
[1752866477366,6.27911085,178.29,178.26,41.89975515]
[1752866477868,12.34975515,178.28,178.19,26.0]
[1752866478036,6.0844,178.31,178.23,11.67975515]
[1752866478241,0.67,178.3,178.24,30.22]
[1752866478438,11.67975515,178.35,178.24,30.22]
[1752866478439,6.27756475,178.34,178.29,11.67975515]
[1752866478656,0.67,178.33,178.29,30.22]
[1752866478866,0.67,178.33,178.21,0.65]
[1752866478867,12.34975515,178.33,178.21,0.65]
[1752866479159,5.60946878,178.27,178.22,30.22]
[1752866479458,0.67,178.26,178.23,41.89975515]
[1752866479668,0.67,178.25,178.23,41.89975515]
[1752866480035,0.67,178.29,178.24,41.87975515]
[1752866480236,0.06,178.31,178.28,11.67975515]
[1752866480464,0.73,178.31,178.28,30.2]
[1752866480762,12.40975515,178.31,178.26,41.87975515]
[1752866480972,11.73975515,178.31,178.26,41.87975515]
[1752866481183,0.67,178.3,178.26,41.87975515]
[1752866481346,5.60883953,178.29,178.27,11.67975515]
[1752866481659,5.60883953,178.29,178.28,11.67975515]
[1752866481962,0.06,178.31,178.28,11.67975515]
[1752866481963,5.66851522,178.31,178.28,11.67975515]
[1752866482165,5.66851522,178.31,178.26,30.85]
[1752866482466,0.67,178.3,178.28,11.67975515]
[1752866482644,0.67,178.3,178.29,11.67975515]
[1752866483047,5.66851522,178.31,178.29,11.67975515]
[1752866483265,6.33851522,178.31,178.29,11.67975515]
[1752866483564,0.06,178.31,178.3,42.52975515]
[1752866484065,0.06,178.31,178.3,41.87975515]
[1752866484246,0.06,178.31,178.3,11.67975515]
[1752866484451,0.73,178.31,178.3,30.2]
[1752866485439,0.06,178.31,178.28,11.67975515]
[1752866485749,0.06,178.31,178.29,30.18]
[1752866485943,5.66827533,178.31,178.3,30.18]
[1752866488253,0.06,178.31,178.3,41.85975515]
[1752866489157,0.06,178.31,178.3,30.18]
[1752866489363,0.06,178.31,178.3,41.85975515]
[1752866490986,0.73,178.31,178.28,11.67975515]
[1752866491284,0.73,178.31,178.29,30.18]
[1752866491652,5.60852495,178.3,178.29,30.18]
[1752866492355,5.60852495,178.3,178.29,41.85975515]
[1752866492564,5.60852495,178.3,178.29,30.18]
[1752866492749,5.66821042,178.31,178.29,30.18]
[1752866492952,6.33821042,178.31,178.29,30.18]
[1752866494172,6.33821042,178.31,178.29,30.16]
[1752866494387,5.66821042,178.31,178.3,11.67975515]
[1752866494582,5.66821042,178.31,178.29,30.16]
[1752866494758,5.66821042,178.31,178.3,11.67975515]
[1752866496487,0.06,178.31,178.3,11.67975515]
[1752866496884,0.06,178.31,178.3,12.32975515]
[1752866497190,0.06,178.31,178.3,29.61803525]
[1752866497391,6.27574089,178.39,178.3,29.61803525]
[1752866497566,5.60574089,178.39,178.38,11.67975515]
[1752866497757,6.3583,178.41,178.38,41.83975515]
[1752866497962,6.3583,178.41,178.4,11.67975515]
[1752866498185,6.27412463,178.44,178.4,41.83975515]
[1752866498388,6.27412463,178.44,178.42,11.67975515]
[1752866498596,6.27412463,178.44,178.42,41.83975515]
[1752866498970,6.27412463,178.44,178.42,30.16]
[1752866499289,6.27412463,178.44,178.42,41.83975515]
[1752866500370,5.60412463,178.44,178.42,41.83975515]
[1752866500587,5.60381059,178.45,178.42,41.83975515]
[1752866501097,6.27381059,178.45,178.43,30.14]
[1752866501465,6.27381059,178.45,178.35,5.60674069]
[1752866501466,0.67,178.44,178.35,5.60674069]
[1752866501668,0.67,178.44,178.4,11.67975515]
[1752866501978,20.28333706,178.45,178.41,41.81975515]
[1752866502169,0.67,178.44,178.42,30.14]
[1752866502578,5.60443871,178.43,178.42,30.14]
[1752866502799,5.60443871,178.43,178.42,41.81975515]
[1752866503172,5.60406331,178.45,178.42,41.81975515]
[1752866503368,5.60406331,178.45,178.44,11.67975515]
[1752866503587,5.60406331,178.45,178.44,41.81975515]
[1752866503866,5.60406331,178.45,178.44,30.14]
[1752866504972,5.60406331,178.45,178.34,27.5543]
[1752866504973,6.27406331,178.45,178.34,27.5543]
[1752866505171,0.67,178.44,178.39,11.67975515]
[1752866505470,0.67,178.44,178.41,11.67975515]
[1752866505674,19.61358978,178.45,178.42,11.67975515]
[1752866505898,5.60406331,178.45,178.43,11.67975515]
[1752866507592,5.60406331,178.45,178.44,41.79975515]
[1752866507770,5.60406331,178.45,178.44,30.12]
[1752866508765,5.60406331,178.45,178.43,11.67975515]
[1752866508766,6.28406331,178.45,178.37,0.66]
[1752866508967,6.28406331,178.45,178.41,11.67975515]
[1752866509183,0.68,178.44,178.42,30.12]
[1752866509390,5.60406331,178.45,178.42,41.79975515]
[1752866509690,6.28406331,178.45,178.42,41.79975515]
[1752866510479,0.68,178.44,178.39,0.66]
[1752866510684,12.35975515,178.43,178.36,0.66]
[1752866510980,12.35975515,178.43,178.38,11.67975515]
[1752866510981,0.68,178.43,178.38,11.67975515]
[1752866511210,0.68,178.42,178.38,11.67975515]
[1752866511568,5.60406331,178.45,178.39,0.66]
[1752866511806,5.60406331,178.45,178.42,11.67975515]
[1752866513377,5.60406331,178.45,178.43,41.79975515]
[1752866513877,5.60406331,178.45,178.43,30.12]
[1752866514107,5.60406331,178.45,178.43,41.79975515]
[1752866514281,5.6031826,178.47,178.43,30.12]
[1752866514600,6.2831826,178.47,178.43,41.79975515]
[1752866514902,5.6031826,178.47,178.43,30.12]
[1752866515074,5.6031826,178.47,178.45,11.67975515]
[1752866516394,5.60286866,178.48,178.44,11.67975515]
[1752866516775,6.28286866,178.48,178.44,11.67975515]
[1752866517395,4.13075731,178.47,178.45,12.33975515]
[1752866517605,11.67975515,178.47,178.29,38.04357573]
[1752866517812,4.81053088,178.46,178.4,11.67975515]
[1752866518019,0.68,178.48,178.41,30.76]
[1752866518193,4.13085758,178.47,178.43,11.67975515]
[1752866518394,9.7345822,178.46,178.43,11.67975515]
[1752866518615,5.60372462,178.46,178.43,11.67975515]
[1752866519084,6.2886,178.5,178.45,11.67975515]
[1752866519287,4.14628464,178.49,178.47,11.67975515]
[1752866519515,4.14628464,178.48,178.46,12.33975515]
[1752866519831,12.57090108,178.5,178.46,11.67975515]
[1752866520000,4.14499204,178.49,178.48,11.67975515]
[1752866520193,4.14499204,178.49,178.48,12.33975515]
[1752866520387,4.14499204,178.49,178.48,42.43975515]
[1752866520596,5.66183431,178.52,178.48,30.76]
[1752866520826,0.06,178.52,178.49,12.33975515]
[1752866520992,5.66162511,178.52,178.5,11.67975515]
[1752866521195,0.06,178.52,178.5,0.66]
[1752866521719,0.06,178.52,178.51,41.75975515]
[1752866522096,0.06,178.52,178.51,42.41975515]
[1752866522624,0.06,178.52,178.51,48.02168221]
[1752866523099,0.06,178.52,178.51,36.34192706]
[1752866523300,0.06,178.52,178.51,42.41975515]
[1752866523606,0.06,178.52,178.51,12.33975515]
[1752866523805,0.06,178.52,178.51,30.08]
[1752866524420,0.74,178.52,178.46,12.33975515]
[1752866524601,5.60192706,178.51,178.47,41.75975515]
[1752866524802,11.73975515,178.52,178.48,0.66]
[1752866525029,11.67975515,178.51,178.47,30.74]
[1752866525230,0.68,178.51,178.46,11.67975515]
[1752866525423,17.34145948,178.52,178.47,11.67975515]
[1752866525626,17.34145948,178.52,178.47,42.41975515]
[1752866525815,18.02145948,178.52,178.47,42.41975515]
[1752866526012,5.66170433,178.52,178.46,11.67975515]
[1752866526213,12.35975515,178.51,178.47,30.08]
[1752866526529,17.34145948,178.52,178.47,41.75975515]
[1752866526745,18.02145948,178.52,178.47,41.75975515]
[1752866526930,12.35975515,178.51,178.47,41.75975515]
[1752866527140,12.35975515,178.51,178.48,30.08]
[1752866528444,11.67975515,178.49,178.37,0.66]
[1752866528747,11.67975515,178.43,178.38,41.75975515]
[1752866528912,0.68,178.45,178.39,11.67975515]
[1752866529107,20.29004033,178.48,178.4,12.33975515]
[1752866529316,11.67975515,178.47,178.42,11.67975515]
[1752866529518,5.60256766,178.49,178.44,11.67975515]